bitfinex/quotes_SOLUSD_20251214
["timestamp","ask_amount","ask_price","bid_price","bid_amount"]
[1765682304376,44.91894192,133.3,133.29,1e-08]
[1765682311990,41.5390585,133.3,133.29,1e-08]
[1765682312287,44.91894192,133.3,133.29,1e-08]
[1765682316395,44.24894192,133.3,133.29,1e-08]
[1765682317891,44.93894192,133.3,133.29,1e-08]
[1765682328807,40.8690585,133.3,133.29,1e-08]
[1765682329307,44.24894192,133.3,133.29,1e-08]
[1765682329907,43.0324498,133.3,133.29,1e-08]
[1765682331408,43.7224498,133.3,133.29,1e-08]
[1765682337812,43.72249167,133.3,133.29,1e-08]
[1765682339509,41.5590585,133.3,133.29,1e-08]
[1765682339685,43.72249167,133.3,133.29,1e-08]
[1765682342417,41.5590585,133.3,133.29,1e-08]
[1765682342602,43.03249167,133.3,133.29,1e-08]
[1765682350244,43.69249167,133.3,133.29,1e-08]
[1765682356034,40.8690585,133.3,133.29,1e-08]
[1765682356237,43.03249167,133.3,133.29,1e-08]
[1765682357352,43.69249167,133.3,133.29,1e-08]
[1765682360014,40.8690585,133.3,133.29,1e-08]
[1765682360214,43.03249167,133.3,133.29,1e-08]
[1765682368843,10.50769924,133.3,133.29,0.67000001]
[1765682369136,18.61741512,133.3,133.29,0.67000001]
[1765682369343,21.764723,133.3,133.29,0.67000001]
[1765682369510,29.984723,133.3,133.29,0.67000001]
[1765682371235,27.82128983,133.3,133.29,0.67000001]
[1765682374039,18.72702177,133.3,133.29,0.67000001]
[1765682397769,18.72702177,133.3,133.29,4.04884821]
[1765682398671,18.33282,133.3,133.29,4.04884821]
[1765682399855,15.32767369,133.3,133.29,4.04884821]
[1765682401170,7.10767369,133.3,133.29,4.04884821]
[1765682402574,7.50131272,133.31,133.29,4.04884821]
[1765682402757,7.50131272,133.31,133.3,0.72]
[1765682403261,7.50094286,133.32,133.3,4.0988482]
[1765682403469,7.50094286,133.32,133.31,4.0988482]
[1765682408477,7.50094286,133.32,133.31,4.09706641]
[1765682412091,7.50094286,133.32,133.31,0.72]
[1765682412494,35.19281804,133.32,133.29,61.20000001]
[1765682412802,0.72,133.31,133.29,61.20000001]
[1765682413301,23.25521126,133.31,133.29,61.20000001]
[1765682413601,23.25521126,133.31,133.29,61.92000001]
[1765682414604,7.50187546,133.3,133.29,61.92000001]
[1765682415504,7.50187546,133.3,133.29,0.72000001]
[1765682424410,7.50187546,133.3,133.29,4.09706642]
[1765682425608,7.50187546,133.3,133.29,0.72000001]
[1765682425810,7.50187546,133.3,133.29,4.09706642]
[1765682437520,7.50187546,133.3,133.29,0.72000001]
[1765682437693,7.50187546,133.3,133.29,4.09706642]
[1765682443628,7.50187546,133.3,133.29,4.09791907]
[1765682444226,7.50187546,133.3,133.29,3.37791907]
[1765682444432,8.21187546,133.3,133.29,1e-08]
[1765682444730,7.50187546,133.3,133.29,1e-08]
[1765682447506,7.50187546,133.3,133.29,0.67000001]
[1765682449805,8.21187546,133.3,133.29,1e-08]
[1765682450532,11.21657029,133.3,133.29,1e-08]
[1765682451233,11.21657029,133.3,133.29,2.1619453]
[1765682453235,11.21657029,133.3,133.29,1e-08]
[1765682457637,11.35873186,133.3,133.29,1e-08]
[1765682457841,20.31083835,133.3,133.29,1e-08]
[1765682462020,10.50657029,133.3,133.29,1e-08]
[1765682462339,11.22657029,133.3,133.29,2.1619453]
[1765682462547,11.22657029,133.3,133.29,1e-08]
[1765682473052,10.50657029,133.3,133.29,1e-08]
[1765682473436,11.22657029,133.3,133.29,1e-08]
[1765682496097,11.22657029,133.3,133.29,2.1625163]
[1765682496422,11.22657029,133.3,133.29,1e-08]
[1765682496603,11.22657029,133.3,133.29,2.1625163]
[1765682512018,11.22657029,133.3,133.29,3.37779854]
[1765682513927,11.22657029,133.3,133.29,3.37779993]
[1765682523945,10.50657029,133.3,133.29,3.37779993]
[1765682525537,11.16657029,133.3,133.29,3.37779993]
[1765682528244,20.26083835,133.3,133.29,1e-08]
[1765682532732,95.26083835,133.3,133.29,1e-08]
[1765682533047,98.63863827,133.3,133.29,1e-08]
[1765682534751,13.0470912,133.25,133.24,0.2]
[1765682535048,0.28432314,133.23,133.19,0.2]
[1765682535343,20.69206798,133.23,133.19,0.2]
[1765682535533,17.31426806,133.23,133.19,3.57779992]
[1765682535942,24.2698679,133.23,133.19,0.2]
[1765682536125,20.89206798,133.23,133.19,0.2]
[1765682536323,24.2698679,133.23,133.19,0.2]
[1765682536732,31.7756849,133.23,133.19,0.2]
[1765682537851,23.5556849,133.23,133.19,0.2]
[1765682538043,31.7756849,133.23,133.19,0.2]
[1765682538978,22.14135926,133.2,133.19,0.2]
[1765682539162,37.1169591,133.2,133.19,1e-08]
[1765682539365,9.75426806,133.19,133.18,1e-08]
[1765682539652,9.75426806,133.19,133.1,0.68]
[1765682539653,9.09426806,133.15,133.1,0.68]
[1765682539849,11.59779992,133.14,133.1,0.68]
[1765682540247,8.22,133.14,133.1,4.05779992]
[1765682540454,8.22,133.15,133.13,3.37779992]
[1765682540644,13.0470912,133.18,133.14,3.37779992]
[1765682540831,8.22,133.17,133.14,3.37779992]
[1765682541159,8.95210649,133.16,133.12,13.0470912]
[1765682541454,8.22,133.15,133.13,0.68]
[1765682541861,34.16012835,133.15,133.13,0.68]
[1765682543049,7.51089079,133.14,133.13,0.68]
[1765682543362,30.07321922,133.14,133.13,0.68]
[1765682552268,30.07321922,133.14,133.1,88.18595592]
[1765682552470,8.22,133.13,133.11,0.7]
[1765682552986,30.78232843,133.13,133.11,0.7]
[1765682558051,30.78232843,133.13,133.11,8.21251658]
[1765682558474,30.78232843,133.13,133.12,0.7]
[1765682558775,22.56232843,133.13,133.12,0.7]
[1765682561484,8.22,133.14,133.12,8.21201923]
[1765682561677,30.78063169,133.14,133.12,8.21201923]
[1765682561876,30.78063169,133.14,133.13,0.7]
[1765682570976,22.56063169,133.14,133.13,0.7]
[1765682573006,15.72996079,133.16,133.13,0.7]
[1765682573297,22.56063169,133.15,133.13,0.7]
[1765682577179,30.0709971,133.15,133.13,0.7]
[1765682577598,7.51036541,133.15,133.13,0.7]
[1765682577806,22.56063169,133.14,133.13,0.7]
[1765682579315,30.78063169,133.14,133.13,0.7]
[1765682579479,31.46063169,133.14,133.12,0.7]
[1765682579902,8.22,133.14,133.12,0.7]
[1765682580092,22.56063169,133.13,133.12,0.7]
[1765682587615,15.73096486,133.14,133.12,0.7]
[1765682587787,16.41096486,133.14,133.12,0.7]
[1765682594048,15.73096486,133.14,133.12,0.7]
[1765682596928,16.41096486,133.14,133.12,0.7]
[1765682597525,15.73096486,133.14,133.12,0.7]
[1765682598428,16.41096486,133.14,133.12,0.7]
[1765682599334,7.51020493,133.16,133.12,10.38007687]
[1765682599532,16.41020493,133.16,133.12,10.38007687]
[1765682599730,16.41020493,133.16,133.13,0.7]
[1765682602233,16.41020493,133.16,133.13,2.86805974]
[1765682603535,16.41020493,133.16,133.14,0.71]
[1765682605661,15.73020493,133.16,133.14,0.71]
[1765682605813,0.66,133.19,133.15,2.16805974]
[1765682606009,8.88,133.18,133.15,2.16805974]
[1765682606224,8.22,133.18,133.16,0.67]
[1765682606412,8.22,133.18,133.16,2.83805974]
[1765682606818,8.22,133.18,133.17,0.67]
[1765682609142,7.50814176,133.19,133.17,0.67]
[1765682609348,8.16814176,133.19,133.17,0.67]
[1765682609557,16.38814176,133.19,133.17,0.67]
[1765682609760,8.16814176,133.19,133.17,0.67]
[1765682609924,16.38814176,133.19,133.17,0.67]
[1765682613452,15.72814176,133.19,133.17,0.67]
[1765682613647,8.22,133.19,133.17,2.83805974]
[1765682614335,8.22,133.19,133.18,0.67]
[1765682614923,8.22,133.19,133.18,2.83805974]
[1765682615127,8.22,133.19,133.18,0.67]
[1765682616148,8.88,133.19,133.17,61.2]
[1765682616450,16.38807117,133.19,133.17,61.87]
[1765682620444,16.38807117,133.19,133.17,0.67]
[1765682625170,15.72807117,133.19,133.15,61.2]
[1765682625371,0.66,133.18,133.15,64.03602993]
[1765682626580,8.1687858,133.18,133.15,64.03602993]
[1765682627273,8.1687858,133.18,133.15,63.36602993]
[1765682627572,8.1687858,133.18,133.16,0.67]
[1765682631779,8.1687858,133.18,133.16,2.83602993]
[1765682632587,8.1687858,133.18,133.16,0.67]
[1765682632787,8.1687858,133.18,133.16,2.83602993]
[1765682635891,8.1687858,133.18,133.16,0.67]
[1765682638689,0.72,133.17,133.14,65.25453843]
[1765682638894,0.72,133.17,133.15,0.67]
[1765682640689,7.5087858,133.18,133.15,0.67]
[1765682640889,8.2287858,133.18,133.15,0.67]
[1765682642967,8.2287858,133.18,133.15,4.05453843]
[1765682643168,8.2287858,133.18,133.16,0.67]
[1765682654930,8.22,133.17,133.16,0.67]
[1765682660015,8.2287858,133.18,133.16,0.67]
[1765682660216,8.22,133.17,133.16,0.67]
[1765682676130,8.22,133.17,133.15,4.08484112]
[1765682676332,0.72,133.16,133.12,61.9]
[1765682676646,8.22,133.15,133.12,4.08484112]
[1765682677023,0.72,133.14,133.12,4.08484112]
[1765682677426,0.72,133.14,133.12,3.38484112]
[1765682677637,0.72,133.14,133.12,4.08484112]
[1765682681650,16.45041027,133.15,133.12,3.38484112]
[1765682681834,16.45041027,133.15,133.13,0.7]
[1765682682026,16.45041027,133.15,133.12,4.08484112]
[1765682683353,15.73041027,133.15,133.12,4.08484112]
[1765682683551,0.72,133.14,133.12,4.08484112]
[1765682684864,16.45041027,133.15,133.13,4.08484112]
[1765682687072,8.22,133.15,133.13,4.08484112]
[1765682687979,8.94,133.15,133.13,4.08484112]
[1765682688186,8.22,133.15,133.13,4.08484112]
[1765682689164,15.73009619,133.16,133.13,4.08484112]
[1765682689338,0.72,133.15,133.13,4.08484112]
[1765682689547,0.72,133.15,133.13,4.08586168]
[1765682692578,16.45009619,133.16,133.13,3.38586168]
[1765682692753,15.73009619,133.16,133.13,4.08586168]
[1765682692957,0.72,133.15,133.13,4.08586168]
[1765682693378,8.94,133.15,133.13,4.08586168]
[1765682694484,0.72,133.15,133.13,4.08586168]
[1765682695963,0.72,133.15,133.13,2.86688391]
[1765682696871,8.94,133.15,133.13,2.86688391]
[1765682697083,0.72,133.15,133.13,2.86688391]
[1765682697291,8.94,133.15,133.13,2.86688391]
[1765682697461,0.72,133.15,133.13,2.86688391]
[1765682697895,8.94,133.15,133.13,2.86688391]
[1765682698691,0.72,133.15,133.13,2.86688391]
[1765682698990,8.94,133.15,133.13,2.86688391]
[1765682699289,0.72,133.15,133.13,2.86688391]
[1765682699592,8.94,133.15,133.13,0.7]
[1765682699772,0.72,133.15,133.13,2.86688391]
[1765682701008,8.94,133.15,133.13,2.86688391]
[1765682701858,0.72,133.15,133.13,2.86688391]
[1765682724202,8.23037502,133.15,133.13,2.86688391]
[1765682725627,7.50976269,133.16,133.13,2.16688391]
[1765682725920,16.43976269,133.16,133.14,0.66]
[1765682726828,8.21976269,133.16,133.14,0.66]
[1765682727037,16.43976269,133.16,133.14,0.66]
[1765682727328,0.71,133.15,133.13,2.82690962]
[1765682727707,8.2206125,133.15,133.13,2.16690962]
[1765682728608,8.2206125,133.15,133.13,2.85690962]
[1765682729633,8.2206125,133.15,133.13,0.69]
[1765682742758,30.77885998,133.16,133.13,0.69]
[1765682742942,16.43992477,133.16,133.13,2.85690962]
[1765682743461,16.43992477,133.16,133.14,0.69]
[1765682748984,16.43992477,133.16,133.13,9.67835575]
[1765682749272,16.43992477,133.16,133.13,10.36835575]
[1765682749474,16.43992477,133.16,133.14,0.69]
[1765682750771,8.22,133.16,133.14,0.69]
[1765682751066,8.22,133.16,133.14,2.85690962]
[1765682752582,8.93,133.16,133.14,2.85690962]
[1765682753291,8.22,133.16,133.14,2.85690962]
[1765682754275,8.93,133.16,133.14,2.85690962]
[1765682755092,8.22,133.16,133.14,2.16690962]
[1765682755287,8.22,133.16,133.15,0.69]
[1765682755686,8.22,133.16,133.14,2.16690962]
[1765682755898,8.92,133.16,133.14,4.04551951]
[1765682756795,0.7,133.16,133.14,4.04551951]
[1765682757290,8.20934261,133.17,133.14,0.66]
[1765682757499,16.42934261,133.17,133.14,4.04551951]
[1765682757867,16.42934261,133.17,133.14,0.66]
[1765682758097,0.7,133.16,133.14,0.66]
[1765682759611,0.7,133.16,133.13,72.75696564]
[1765682761110,0.7,133.16,133.14,0.66]
[1765682767498,8.21004154,133.16,133.13,61.2]
[1765682767909,0.7,133.15,133.13,61.2]
[1765682768519,8.92,133.15,133.13,61.2]
[1765682768804,22.56063169,133.14,133.13,61.2]
[1765682769006,23.26063169,133.14,133.13,61.2]
[1765682771732,23.26063169,133.14,133.12,0.66]
[1765682772732,23.26063169,133.14,133.12,4.04572601]
[1765682774846,30.77157381,133.14,133.12,4.04572601]
[1765682778449,30.07157381,133.14,133.12,4.04572601]
[1765682779350,30.77157381,133.14,133.12,4.04572601]
[1765682780351,30.77157381,133.14,133.12,0.66]
[1765682780553,30.77157381,133.14,133.12,4.04572601]
[1765682781854,30.77157381,133.14,133.12,0.66]
[1765682782054,30.77157381,133.14,133.12,4.04572601]
[1765682786489,22.56063169,133.14,133.12,4.04572601]
[1765682786672,23.27063169,133.14,133.12,4.04572601]
[1765682788389,23.27063169,133.14,133.13,3.38572601]
[1765682790401,30.78152248,133.14,133.13,3.38572601]
[1765682790892,30.78152248,133.14,133.12,4.04572601]
[1765682796785,30.78152248,133.14,133.12,4.04640589]
[1765682802811,30.78152248,133.14,133.12,0.66]
[1765682803010,30.78152248,133.14,133.12,4.04640589]
[1765682803396,30.78152248,133.14,133.12,3.38640589]
[1765682803613,30.78152248,133.14,133.12,4.09640589]
[1765682812529,30.78152248,133.14,133.12,0.71]
[1765682812709,30.78152248,133.14,133.12,4.09640589]
[1765682816027,30.78152248,133.14,133.12,2.87728911]
[1765682818408,0.66,133.13,133.1,8.93]
[1765682818712,23.22232843,133.13,133.1,2.87728911]
[1765682819106,0.66,133.12,133.1,2.87728911]
[1765682819468,0.66,133.12,133.1,0.71]
[1765682819742,0.66,133.12,133.1,2.87728911]
[1765682820441,0.66,133.12,133.11,2.16728911]
[1765682821828,22.56232843,133.13,133.11,2.87728911]
[1765682822038,0.66,133.12,133.11,2.16728911]
[1765682822930,22.56232843,133.13,133.11,2.16728911]
[1765682823137,22.56232843,133.13,133.12,2.87728911]
[1765682824224,16.39051637,133.15,133.12,2.87728911]
[1765682824418,23.24294006,133.15,133.13,2.87728911]
[1765682824848,15.02294006,133.15,133.13,2.87728911]
[1765682825034,15.68294006,133.15,133.13,2.87728911]
[1765682827552,15.68294006,133.15,133.13,2.16728911]
[1765682828633,15.68294006,133.15,133.13,2.87728911]
[1765682829658,15.68294006,133.15,133.13,2.16728911]
[1765682832059,15.68294006,133.15,133.13,2.16712181]
[1765682833758,0.66,133.14,133.13,2.16712181]
[1765682833961,0.66,133.14,133.12,2.16712181]
[1765682835662,0.66,133.14,133.12,2.87712181]
[1765682836871,0.66,133.14,133.12,0.71]
[1765682837072,0.66,133.14,133.12,2.87712181]
[1765682838583,15.68294006,133.15,133.12,2.87712181]
[1765682841374,15.02294006,133.15,133.12,2.87712181]
[1765682841581,0.66,133.14,133.12,2.87712181]
[1765682842182,15.68294006,133.15,133.12,2.87712181]
[1765682843061,15.68294006,133.15,133.13,0.71]
[1765682845382,0.67,133.14,133.12,2.83712181]
[1765682845684,8.18089799,133.14,133.13,2.16712181]
[1765682845878,7.51089799,133.14,133.13,2.16712181]
[1765682846075,7.51089799,133.14,133.12,2.83712181]
[1765682849467,8.17089799,133.14,133.12,2.83712181]
[1765682849677,8.17089799,133.14,133.12,0.67]
[1765682849985,8.17089799,133.14,133.12,2.83712181]
[1765682851897,8.17089799,133.14,133.12,0.67]
[1765682852060,8.17089799,133.14,133.12,2.83712181]
[1765682855070,8.17089799,133.14,133.12,0.67]
[1765682855277,0.66,133.13,133.11,64.07712181]
[1765682857901,16.39089799,133.14,133.12,0.71]
[1765682858182,15.73089799,133.14,133.11,61.91]
[1765682858358,0.66,133.13,133.11,61.2]
[1765682858761,19.43646228,133.13,133.11,61.2]
[1765682859162,0.66,133.12,133.11,61.2]
[1765682860289,26.28815166,133.13,133.11,61.2]
[1765682860467,0.66,133.12,133.11,61.2]
[1765682861990,26.94815166,133.13,133.11,61.2]
[1765682863863,26.94815166,133.13,133.1,2.87712181]
[1765682866284,0.66,133.12,133.1,2.87712181]
[1765682866997,0.66,133.12,133.1,2.87781868]
[1765682867178,0.66,133.12,133.1,2.16781868]
[1765682867696,0.66,133.12,133.1,2.87781868]
[1765682877914,0.66,133.12,133.1,4.09745945]
[1765682880010,0.66,133.12,133.1,0.71]
[1765682880214,0.66,133.12,133.1,4.09745945]
[1765682882811,0.66,133.12,133.1,0.71]
[1765682882988,0.66,133.12,133.1,4.09745945]
[1765682884202,8.94,133.14,133.11,4.10745945]
[1765682884711,23.28063169,133.14,133.12,4.10745945]
[1765682885309,0.72,133.14,133.12,4.10745945]
[1765682885501,23.28063169,133.14,133.12,4.10745945]
[1765682885908,0.72,133.14,133.12,0.72]
[1765682886212,38.29141672,133.15,133.13,0.72]
[1765682886527,0.72,133.14,133.12,4.10745945]
[1765682886896,8.23252495,133.14,133.12,4.10745945]
[1765682891337,8.23252495,133.14,133.12,3.38745945]
[1765682891515,8.23252495,133.14,133.12,4.10745945]
[1765682894817,8.23252495,133.14,133.12,3.38745945]
[1765682895006,8.23252495,133.14,133.11,61.2]
[1765682895007,0.72,133.13,133.11,61.2]
[1765682895598,15.74346871,133.13,133.11,61.2]
[1765682896122,0.72,133.12,133.11,61.2]
[1765682899436,0.72,133.12,133.1,65.30745945]
[1765682900130,0.72,133.12,133.1,4.10745945]
[1765682902022,0.72,133.12,133.1,4.10711191]
[1765682905346,0.72,133.12,133.1,65.30711191]
[1765682908849,30.75509131,133.13,133.1,64.58711191]
[1765682909052,31.44509131,133.13,133.11,0.66]
[1765682909587,31.44509131,133.13,133.11,3.38711191]
[1765682912928,30.75509131,133.13,133.11,3.38711191]
[1765682913128,0.69,133.12,133.1,65.24711191]
[1765682915655,15.7316226,133.13,133.11,4.04711191]
[1765682915854,16.4216226,133.13,133.11,4.04711191]
[1765682916758,16.4216226,133.13,133.11,3.38711191]
[1765682916958,16.4216226,133.13,133.1,61.86]
[1765682917160,16.4216226,133.13,133.11,3.38711191]
[1765682918535,16.4216226,133.13,133.11,4.04711191]
[1765682920262,0.69,133.12,133.09,4.04711191]
[1765682920435,23.25572266,133.12,133.09,4.04711191]
[1765682920638,23.25572266,133.12,133.09,0.66]
[1765682920959,0.69,133.11,133.09,0.66]
[1765682921161,21.25189161,133.11,133.09,0.66]
[1765682921458,20.56189161,133.11,133.09,0.66]
[1765682921663,28.07453524,133.11,133.09,0.66]
[1765682924240,28.07453524,133.11,133.09,4.04711191]
[1765682924662,28.07453524,133.11,133.09,3.04711191]
[1765682926665,28.07453524,133.11,133.09,3.70711191]
[1765682927240,28.76453524,133.11,133.09,3.70711191]
[1765682931372,28.76453524,133.11,133.09,4.04711191]
[1765682933573,28.76453524,133.11,133.09,3.38711191]
[1765682935750,28.76453524,133.11,133.09,4.07711191]
[1765682937176,28.76453524,133.11,133.09,4.07792221]
[1765682937979,28.76453524,133.11,133.09,2.85826637]
[1765682940277,28.76453524,133.11,133.1,2.16826637]
[1765682940584,8.20264363,133.11,133.1,2.16826637]
[1765682940881,15.71685984,133.11,133.1,2.16826637]
[1765682945683,15.71685984,133.11,133.09,0.69]
[1765682945977,15.71685984,133.11,133.1,2.16826637]
[1765682948987,0.69,133.11,133.1,2.16826637]
[1765682950676,23.25572266,133.11,133.1,2.16826637]
[1765682950973,0.69,133.11,133.09,2.85826637]
[1765682952789,38.29807557,133.12,133.09,2.85826637]
[1765682953092,38.97807557,133.12,133.09,2.85826637]
[1765682953393,30.75807557,133.12,133.09,2.85826637]
[1765682953704,38.97807557,133.12,133.09,2.85826637]
[1765682954191,0.68,133.11,133.09,2.85826637]
[1765682957010,0.68,133.11,133.09,0.69]
[1765682957176,0.68,133.11,133.09,2.85826637]
[1765682961712,0.68,133.11,133.08,69.40421621]
[1765682961881,0.68,133.11,133.09,2.16826637]
[1765682971913,0.68,133.11,133.08,69.40421621]
[1765682972113,0.68,133.11,133.09,2.16826637]
[1765682972415,0.68,133.11,133.09,2.16835374]
[1765682975707,0.68,133.11,133.09,2.87835374]
[1765682977519,0.68,133.11,133.09,2.16835374]
[1765682979721,8.19266319,133.11,133.07,83.93002569]
[1765682980022,22.56742016,133.1,133.07,83.93002569]
[1765682980227,23.22742016,133.1,133.07,83.93002569]
[1765682980428,0.66,133.09,133.07,84.64002569]
[1765682983231,0.66,133.09,133.08,2.16835374]
[1765682984218,8.22,133.1,133.09,7.51371252]
[1765682984413,8.9,133.12,133.09,10.39206626]
[1765682984612,16.46,133.12,133.1,2.87835374]
[1765682985217,17.12,133.12,133.1,2.87835374]
[1765682986332,17.12,133.12,133.1,10.39144322]
[1765682987031,17.12,133.12,133.1,8.22308948]
[1765682987233,17.12,133.12,133.1,10.39144322]
[1765682987931,17.12,133.12,133.1,8.22308948]
[1765682988135,17.12,133.12,133.1,10.39144322]
[1765682989635,17.12,133.12,133.1,8.22308948]
[1765682989832,17.12,133.12,133.1,2.16835374]
[1765682991144,17.12,133.12,133.09,8.22346836]
[1765682991337,17.12,133.12,133.1,2.16835374]
[1765682994055,17.12,133.12,133.09,8.22346836]
[1765682994213,17.12,133.12,133.09,10.3918221]
[1765682994414,17.12,133.12,133.09,71.5918221]
[1765682996340,0.71,133.11,133.09,68.71346836]
[1765682996650,0.71,133.11,133.09,61.2]
[1765682997544,23.27572266,133.11,133.09,61.2]
[1765682997914,0.71,133.1,133.09,61.2]
[1765682998117,0.71,133.1,133.07,71.55309615]
[1765682998535,0.71,133.1,133.07,69.38474241]
[1765682998740,0.71,133.1,133.08,0.67]
[1765682999544,0.71,133.1,133.07,70.88309615]
[1765682999749,0.71,133.1,133.07,71.55309615]
[1765683000046,0.71,133.1,133.07,72.77363029]
[1765683000242,16.46353316,133.1,133.07,61.2]
[1765683000417,19.85242104,133.1,133.07,61.2]
[1765683000618,23.27911792,133.09,133.05,61.2]
[1765683000831,8.24,133.08,133.04,64.58888788]
[1765683001145,8.24,133.08,133.05,4.05888788]
[1765683001327,8.24,133.08,133.06,3.38888788]
[1765683001532,8.24,133.08,133.06,4.05888788]
[1765683002050,8.24,133.08,133.06,0.67]
[1765683002350,7.51484181,133.07,133.06,0.67]
[1765683002720,8.22484181,133.07,133.05,3.38888788]
[1765683003643,8.22484181,133.07,133.04,65.25888788]
[1765683004431,7.51484181,133.07,133.04,65.25888788]
[1765683004631,30.81081593,133.08,133.04,65.25888788]
[1765683004632,8.22542257,133.06,133.04,61.87]
[1765683004830,16.46542257,133.06,133.03,0.1]
[1765683005127,8.95,133.05,133.03,0.1]
[1765683005336,31.52761053,133.05,133.03,0.1]
[1765683005650,0.71,133.04,133.03,0.1]
[1765683006830,0.71,133.04,133.03,3.48888788]
[1765683007350,31.52761053,133.05,133.03,3.48888788]
[1765683007554,8.95,133.06,133.04,3.38888788]
[1765683007875,8.95,133.06,133.05,3.39058124]
[1765683008024,8.24,133.06,133.05,3.39058124]
[1765683008226,15.75556491,133.06,133.05,3.39058124]
[1765683008681,16.46556491,133.06,133.03,0.1]
[1765683008831,0.71,133.05,133.04,3.39058124]
[1765683013567,0.71,133.05,133.03,0.1]
[1765683013917,0.71,133.05,133.04,3.39058124]
[1765683014315,8.22597143,133.05,133.04,3.39058124]
[1765683017007,8.22597143,133.05,133.03,0.77]
[1765683017181,8.22597143,133.05,133.04,3.39058124]
[1765683017382,7.51597143,133.05,133.04,3.39058124]
[1765683017990,8.22597143,133.05,133.04,3.39058124]
[1765683019886,7.51597143,133.05,133.04,3.39058124]
[1765683020089,8.24,133.06,133.04,0.67]
[1765683020414,16.46540658,133.06,133.05,3.39058124]
[1765683023106,16.46540658,133.06,133.03,0.77]
[1765683023416,15.75540658,133.06,133.04,3.39058124]
[1765683023803,0.71,133.05,133.04,3.39058124]
[1765683024498,8.22597143,133.05,133.04,3.39058124]
[1765683028828,8.22597143,133.05,133.03,0.1]
[1765683029019,8.22597143,133.05,133.04,3.39058124]
[1765683032030,8.22597143,133.05,133.03,0.1]
[1765683032230,8.22597143,133.05,133.04,3.39058124]
[1765683043537,8.22597143,133.05,133.04,3.39107717]
[1765683044539,8.22597143,133.05,133.03,3.49107717]
[1765683044759,7.51597143,133.05,133.03,3.49107717]
[1765683044930,0.67,133.04,133.03,3.49107717]
[1765683045131,8.18597143,133.05,133.03,3.49107717]
[1765683045430,8.18597143,133.05,133.04,3.39107717]
[1765683045910,7.51597143,133.05,133.04,3.39107717]
[1765683046544,8.18597143,133.05,133.04,3.39107717]
[1765683047042,8.18597143,133.05,133.03,0.1]
[1765683047242,8.18653638,133.04,133.03,3.49107717]
[1765683051652,16.42653638,133.04,133.03,3.49107717]
[1765683052549,16.42653638,133.04,133.03,0.1]
[1765683061735,17.92733185,133.04,133.02,0.17]
[1765683061936,24.97215473,133.03,133.02,0.17]
[1765683062272,13.7070912,133.03,133.02,0.17]
[1765683062436,24.23544716,133.03,133.02,0.17]
[1765683062637,32.47544716,133.03,133.02,0.17]
[1765683064557,31.81544716,133.03,133.02,0.17]
[1765683064761,32.47544716,133.03,133.02,0.17]
[1765683076795,18.76835596,133.03,133.02,0.17]
[1765683077173,19.42835596,133.03,133.02,0.17]
[1765683084677,18.76835596,133.03,133.02,0.17]
[1765683085206,19.46835596,133.03,133.02,0.17]
[1765683095108,28.56262402,133.03,133.02,0.17]
[1765683096912,30.73405421,133.03,133.02,0.17]
[1765683098616,18.76835596,133.03,133.02,0.17]
[1765683098812,28.58262402,133.03,133.02,0.17]
[1765683105617,30.75405421,133.03,133.02,0.17]
[1765683106819,22.51405421,133.03,133.02,0.17]
[1765683107120,28.58262402,133.03,133.02,0.17]
[1765683115336,30.75445942,133.03,133.02,0.17]
[1765683119937,31.97627474,133.03,133.02,0.17]
[1765683120851,18.76835596,133.03,133.02,0.88]
[1765683121010,15.7571014,133.03,133.02,0.88]
[1765683122834,23.27585416,133.03,133.02,0.88]
[1765683123033,23.27585416,133.03,133.02,4.27365072]
[1765683123954,8.24,133.05,133.02,11.79129345]
[1765683124152,8.24,133.05,133.04,3.39365072]
[1765683124518,8.24,133.05,133.04,4.10365072]
[1765683128741,15.75597143,133.05,133.04,4.10365072]
[1765683133742,7.51875276,133.06,133.04,4.10365072]